Workbook

Sheet PROJECT INFO
A1: PROJECT INFORMATION
A3: PROJECT/PID: | B3: l
A4: INTERSECTION NAME:
A5: REV. DATE:

Sheet CONDUIT SIZING
A1: CONDUIT | H1: CABLE AND WIRE | N1: IS [A] LESS THAN 0.25C? | O1: FINAL CONDUIT NOMINAL DIAMETER
A2: FROM | B2: TO | C2: RUN LENGTH | D2: SIZE/NOMINAL DIAMETER | E2: INSIDE DIAMETER | F2: C | G2: 0.25C | H2: CABLE USE | I2: SPECIFICATION OR MATERIAL | J2: NO. OF CONDUCTORS AWG | K2: NO. CABLES OR WIRES* | L2: a | M2: [A]
F3: INSIDE AREA | G3: 25% INSIDE AREA | L3: CROSS SECTION AREA | M3: COMBINED CROSS SECTION AREA
C4: FT. | D4: IN. | E4: IN. | F4: SQ. IN. | G4: SQ. IN. | L4: SQ. IN. | M4: SQ. IN. | O4: IN. | Q4: CONDUIT CROSS SECTION AREA | W4: CROSS SECTION AREA OF CABLE AND WIRE | AA4: - | AB4: IMSA 19-1 OR 20-1 | AC4: RHH/RHW/USE | AD4: ETHERNET CAT 5E ARMORED | AE4: SMARTSENSOR 6 CONDUCTOR | AF4: IMSA 50-2 | AG4: RG-6/V (COAX) | AH4: RG-6/V WITH POWER (COAX) | AI4: RG-8/U (COAX)
A5: CONT. | B5: PB-4 | C5: 34 | D5: 4 | E5: =VLOOKUP(D5,$R$6:$T$16,2,FALSE) -> 4.026 | F5: =VLOOKUP(D5,$R$6:$T$16,3,FALSE) -> 12.72 | G5: =VLOOKUP(D5,$R$6:$U$16,4,FALSE) -> 3.18 | H5: SIGNALS | I5: IMSA 19-1 OR 20-1 | J5: 7/C # 14 | K5: 3 | L5: =IF(K5="-","-",(K5*INDEX($Y$6:$Y$40,MATCH(1,INDEX((I5=$W$6:$W$40)*(J5=$X$6:$X$40),0),0)))) -> 0.66 | M5: =IF(L5="-","-",SUMIF(L5:L19,">0")) -> 1.895 | N5: =IF(M5="-","-",IF(M5<=G5, "YES", "NO")) -> YES | O5: =IF(N5="-","-",IF(N5="YES",D5,INDEX($R$19:$R$28,MATCH(M5,$S$19:$S$28,-1)))) -> 4 | Q5: 0.4 AREA | R5: NOMINAL DIAMETER | S5: INSIDE DIAMETER | T5: INSIDE AREA | U5: 0.25 AREA | W5: SPECIFICATION OR MATERIAL | X5: NO. OF CONDUCTORS AWG | Y5: CROSS SECTION AREA, SQ. IN. | AA5: - | AB5: - | AC5: - | AD5: - | AE5: - | AF5: - | AG5: - | AH5: - | AI5: -
H6: SIGNALS | I6: IMSA 19-1 OR 20-1 | J6: 5/C # 14 | K6: 3 | L6: =IF(K6="-","-",(K6*INDEX($Y$6:$Y$40,MATCH(1,INDEX((I6=$W$6:$W$40)*(J6=$X$6:$X$40),0),0)))) -> 0.57 | Q6: - | R6: - | S6: - | T6: - | U6: - | W6: - | X6: - | Y6: - | AB6: 2/C # 14 | AC6: 1/C # 14 | AD6: 8/C # 24 | AE6: 6/C # 20 | AF6: 2/C # 14 | AG6: 1/C # 18 | AH6: 1/C # 18 (COAX) | AI6: 1/C # 11
H7: SIGNALS | I7: IMSA 19-1 OR 20-1 | J7: 2/C # 14 | K7: 3 | L7: 0.3 | Q7: =0.25*T7 -> 0.075 | R7: 0.5 | S7: 0.622 | T7: 0.3 | U7: =0.25*T7 -> 0.075 | W7: IMSA 19-1 OR 20-1 | X7: 2/C # 12 | Y7: 0.12 | AB7: 3/C # 14 | AC7: 1/C # 12 | AH7: 2/C # 16 (POWER)
H8: WAVETRONIX RADAR | I8: SMARTSENSOR 6 CONDUCTOR | J8: 6/C # 20 | K8: 1 | L8: 0.14 | Q8: =0.25*T8 -> 0.1325 | R8: 0.75 | S8: 0.824 | T8: 0.53 | U8: =0.25*T8 -> 0.1325 | W8: IMSA 19-1 OR 20-1 | X8: 2/C # 14 | Y8: 0.1 | AB8: 4/C # 14 | AC8: 1/C # 10
H9: LIGHTING | I9: RHH/RHW/USE | J9: 1/C # 10 | K9: 3 | L9: 0.225 | Q9: 0.215 | R9: 1 | S9: 1.049 | T9: 0.86 | U9: 0.215 | W9: IMSA 19-1 OR 20-1 | X9: 3/C # 12 | Y9: 0.16 | AB9: 5/C # 14 | AC9: 1/C # 8
H10: - | I10: - | J10: - | K10: - | L10: - | Q10: 0.375 | R10: 1.25 | S10: 1.38 | T10: 1.5 | U10: 0.375 | W10: IMSA 19-1 OR 20-1 | X10: 3/C # 14 | Y10: 0.13 | AB10: 7/C # 14 | AC10: 1/C # 6
H11: - | I11: - | J11: - | K11: - | L11: - | Q11: 0.51 | R11: 1.5 | S11: 1.61 | T11: 2.04 | U11: 0.51 | W11: IMSA 19-1 OR 20-1 | X11: 4/C # 12 | Y11: 0.19 | AB11: 9/C # 14 | AC11: 1/C # 4
H12: - | I12: - | J12: - | K12: - | L12: - | Q12: 0.84 | R12: 2 | S12: 2.067 | T12: 3.36 | U12: 0.84 | W12: IMSA 19-1 OR 20-1 | X12: 4/C # 14 | Y12: 0.16 | AB12: 12/C # 14 | AC12: 1/C # 2
H13: - | I13: - | J13: - | K13: - | L13: - | Q13: 1.1975 | R13: 2.5 | S13: 2.469 | T13: 4.79 | U13: 1.1975 | W13: IMSA 19-1 OR 20-1 | X13: 5/C # 12 | Y13: 0.23 | AB13: 15/C # 14
H14: - | I14: - | J14: - | K14: - | L14: - | Q14: 1.845 | R14: 3 | S14: 3.068 | T14: 7.38 | U14: 1.845 | W14: IMSA 19-1 OR 20-1 | X14: 5/C # 14 | Y14: 0.19 | AB14: 18/C # 14
H15: - | I15: - | J15: - | K15: - | L15: - | Q15: 2.475 | R15: 3.5 | S15: 3.548 | T15: 9.9 | U15: 2.475 | W15: IMSA 19-1 OR 20-1 | X15: 7/C # 12 | Y15: 0.3 | AB15: 25/C # 14
H16: - | I16: - | J16: - | K16: - | L16: - | Q16: 3.18 | R16: 4 | S16: 4.026 | T16: 12.72 | U16: 3.18 | W16: IMSA 19-1 OR 20-1 | X16: 7/C # 14 | Y16: 0.22 | AB16: 2/C # 12
H17: - | I17: - | J17: - | K17: - | L17: - | W17: IMSA 19-1 OR 20-1 | X17: 9/C # 12 | Y17: 0.4 | AB17: 3/C # 12
H18: - | I18: - | J18: - | K18: - | L18: - | R18: NOMINAL DIAMETER | S18: 0.25 AREA | W18: IMSA 19-1 OR 20-1 | X18: 9/C # 14 | Y18: 0.33 | AB18: 4/C # 12
H19: - | I19: - | J19: - | K19: - | L19: - | R19: 4 | S19: 3.18 | W19: IMSA 19-1 OR 20-1 | X19: 12/C # 12 | Y19: 0.5 | AB19: 5/C # 12
A20: PB-4 | B20: PS-5 | C20: 9 | D20: 2 | E20: =VLOOKUP(D20,$R$6:$T$16,2,FALSE) -> 2.067 | F20: =VLOOKUP(D20,$R$6:$T$16,3,FALSE) -> 3.36 | G20: =VLOOKUP(D20,$R$6:$U$16,4,FALSE) -> 0.84 | H20: SIGNALS | I20: IMSA 19-1 OR 20-1 | J20: 7/C # 14 | K20: 1 | L20: 0.22 | M20: =IF(L20="-","-",SUMIF(L20:L34,">0")) -> 0.51 | N20: =IF(M20="-","-",IF(M20<=G20, "YES", "NO")) -> YES | O20: =IF(N20="-","-",IF(N20="YES",D20,INDEX($R$19:$R$28,MATCH(M20,$S$19:$S$28,-1)))) -> 2 | R20: 3.5 | S20: 2.48 | W20: IMSA 19-1 OR 20-1 | X20: 12/C # 14 | Y20: 0.41 | AB20: 7/C # 12
H21: SIGNALS | I21: IMSA 19-1 OR 20-1 | J21: 5/C # 14 | K21: 1 | L21: 0.19 | R21: 3 | S21: 1.85 | W21: IMSA 19-1 OR 20-1 | X21: 15/C #12 | Y21: 0.58 | AB21: 9/C # 12
H22: SIGNALS | I22: IMSA 19-1 OR 20-1 | J22: 2/C # 14 | K22: 1 | L22: 0.1 | R22: 2.5 | S22: 1.2 | W22: IMSA 19-1 OR 20-1 | X22: 15/C # 14 | Y22: 0.48 | AB22: 12/C # 12
H23: - | I23: - | J23: - | K23: - | L23: - | R23: 2 | S23: 0.84 | W23: IMSA 19-1 OR 20-1 | X23: 18/C # 12 | Y23: 0.74 | AB23: 15/C #12
H24: - | I24: - | J24: - | K24: - | L24: - | R24: 1.5 | S24: 0.51 | W24: IMSA 19-1 OR 20-1 | X24: 18/C # 14 | Y24: 0.55 | AB24: 18/C # 12
H25: - | I25: - | J25: - | K25: - | L25: - | R25: 1.25 | S25: 0.38 | W25: IMSA 19-1 OR 20-1 | X25: 25/C # 12 | Y25: 1 | AB25: 25/C # 12
H26: - | I26: - | J26: - | K26: - | L26: - | R26: 1 | S26: 0.22 | W26: IMSA 19-1 OR 20-1 | X26: 25/C # 14 | Y26: 0.82
H27: - | I27: - | J27: - | K27: - | L27: - | R27: 0.75 | S27: 0.13 | W27: RHH/RHW/USE | X27: 1/C # 2 | Y27: 0.229
H28: - | I28: - | J28: - | K28: - | L28: - | R28: 0.5 | S28: 0.08 | W28: RHH/RHW/USE | X28: 1/C # 4 | Y28: 0.173 | AA28: - | AB28: SIGNALS | AC28: LIGHTING | AD28: COMMUNICATIONS | AE28: WAVETRONIX RADAR | AF28: LOOP LEAD-IN | AG28: VIDEO | AH28: RADIO ANTENNA
H29: - | I29: - | J29: - | K29: - | L29: - | W29: RHH/RHW/USE | X29: 1/C # 6 | Y29: 0.138 | AA29: - | AB29: - | AC29: - | AD29: - | AE29: - | AF29: - | AG29: - | AH29: -
H30: - | I30: - | J30: - | K30: - | L30: - | W30: RHH/RHW/USE | X30: 1/C # 8 | Y30: 0.107 | AB30: IMSA 19-1 OR 20-1 | AC30: RHH/RHW/USE | AD30: ETHERNET CAT 5E ARMORED | AE30: SMARTSENSOR 6 CONDUCTOR | AF30: IMSA 50-2 | AG30: RG-6/V (COAX) | AH30: RG-8/U (COAX)
H31: - | I31: - | J31: - | K31: - | L31: - | W31: RHH/RHW/USE | X31: 1/C # 10 | Y31: 0.075 | AG31: RG-6/V WITH POWER (COAX)
H32: - | I32: - | J32: - | K32: - | L32: - | W32: RHH/RHW/USE | X32: 1/C # 12 | Y32: 0.061
H33: - | I33: - | J33: - | K33: - | L33: - | W33: RHH/RHW/USE | X33: 1/C # 14 | Y33: 0.053
H34: - | I34: - | J34: - | K34: - | L34: - | W34: ETHERNET CAT 5E ARMORED | X34: 8/C # 24 | Y34: 0.13
A35: PB-4 | B35: PB-5 | C35: 127 | D35: 4 | E35: =VLOOKUP(D35,$R$6:$T$16,2,FALSE) -> 4.026 | F35: =VLOOKUP(D35,$R$6:$T$16,3,FALSE) -> 12.72 | G35: =VLOOKUP(D35,$R$6:$U$16,4,FALSE) -> 3.18 | H35: SIGNALS | I35: IMSA 19-1 OR 20-1 | J35: 7/C # 14 | K35: 2 | L35: 0.44 | M35: =IF(L35="-","-",SUMIF(L35:L49,">0")) -> 1.385 | N35: =IF(M35="-","-",IF(M35<=G35, "YES", "NO")) -> YES | O35: =IF(N35="-","-",IF(N35="YES",D35,INDEX($R$19:$R$28,MATCH(M35,$S$19:$S$28,-1)))) -> 4 | W35: SMARTSENSOR 6 CONDUCTOR | X35: 6/C # 20 | Y35: 0.14
H36: SIGNALS | I36: IMSA 19-1 OR 20-1 | J36: 5/C # 14 | K36: 2 | L36: 0.38 | W36: IMSA 50-2 | X36: 2/C # 14 | Y36: 0.1
H37: SIGNALS | I37: IMSA 19-1 OR 20-1 | J37: 2/C # 14 | K37: 2 | L37: 0.2 | W37: RG-6/V (COAX) | X37: 1/C # 18 | Y37: 0.06
H38: WAVETRONIX RADAR | I38: SMARTSENSOR 6 CONDUCTOR | J38: 6/C # 20 | K38: 1 | L38: 0.14 | W38: RG-6/V WITH POWER (COAX) | X38: 1/C # 18 (COAX) | Y38: 0.16
H39: LIGHTING | I39: RHH/RHW/USE | J39: 1/C # 10 | K39: 3 | L39: 0.225 | W39: RG-6/V WITH POWER (COAX) | X39: 2/C # 16 (POWER) | Y39: 0.16
H40: - | I40: - | J40: - | K40: - | L40: - | W40: RG-8/U (COAX) | X40: 1/C # 11 | Y40: 0.13
H41: - | I41: - | J41: - | K41: - | L41: -
H42: - | I42: - | J42: - | K42: - | L42: -
H43: - | I43: - | J43: - | K43: - | L43: -
H44: - | I44: - | J44: - | K44: - | L44: -
H45: - | I45: - | J45: - | K45: - | L45: -
H46: - | I46: - | J46: - | K46: - | L46: -
H47: - | I47: - | J47: - | K47: - | L47: -
H48: - | I48: - | J48: - | K48: - | L48: -
H49: - | I49: - | J49: - | K49: - | L49: -
A51: * NOTE: INCLUDE GROUNDING CONDUCTOR IN WIRE COUNT FOR LIGHTING CIRCUITS OF NOTATION "WITH GROUND."
A53: CONDUIT | H53: CABLE AND WIRE | N53: IS [A] LESS THAN 0.25C? | O53: FINAL CONDUIT NOMINAL DIAMETER
A54: FROM | B54: TO | C54: RUN LENGTH | D54: SIZE/NOMINAL DIAMETER | E54: INSIDE DIAMETER | F54: C | G54: 0.25C | H54: CABLE USE | I54: SPECIFICATION OR MATERIAL | J54: NO. OF CONDUCTORS AWG | K54: NO. CABLES OR WIRES* | L54: a | M54: [A]
F55: INSIDE AREA | G55: 25% INSIDE AREA | L55: CROSS SECTION AREA | M55: COMBINED CROSS SECTION AREA
C56: FT. | D56: IN. | E56: IN. | F56: SQ. IN. | G56: SQ. IN. | L56: SQ. IN. | M56: SQ. IN. | O56: IN.
A57: PB-5 | B57: SP-4 | C57: 20 | D57: 3 | E57: =VLOOKUP(D57,$R$6:$T$16,2,FALSE) -> 3.068 | F57: =VLOOKUP(D57,$R$6:$T$16,3,FALSE) -> 7.38 | G57: =VLOOKUP(D57,$R$6:$U$16,4,FALSE) -> 1.845 | H57: SIGNALS | I57: IMSA 19-1 OR 20-1 | J57: 7/C # 14 | K57: 2 | L57: =IF(K57="-","-",(K57*INDEX($Y$6:$Y$40,MATCH(1,INDEX((I57=$W$6:$W$40)*(J57=$X$6:$X$40),0),0)))) -> 0.44 | M57: =IF(L57="-","-",SUMIF(L57:L71,">0")) -> 1.095 | N57: =IF(M57="-","-",IF(M57<=G57, "YES", "NO")) -> YES | O57: =IF(N57="-","-",IF(N57="YES",D57,INDEX($R$19:$R$28,MATCH(M57,$S$19:$S$28,-1)))) -> 3
H58: SIGNALS | I58: IMSA 19-1 OR 20-1 | J58: 5/C # 14 | K58: 1 | L58: =IF(K58="-","-",(K58*INDEX($Y$6:$Y$40,MATCH(1,INDEX((I58=$W$6:$W$40)*(J58=$X$6:$X$40),0),0)))) -> 0.19
H59: SIGNALS | I59: IMSA 19-1 OR 20-1 | J59: 2/C # 14 | K59: 1 | L59: 0.1
H60: WAVETRONIX RADAR | I60: SMARTSENSOR 6 CONDUCTOR | J60: 6/C # 20 | K60: 1 | L60: 0.14
H61: LIGHTING | I61: RHH/RHW/USE | J61: 1/C # 10 | K61: 3 | L61: 0.225
H62: - | I62: - | J62: - | K62: - | L62: -
H63: - | I63: - | J63: - | K63: - | L63: -
H64: - | I64: - | J64: - | K64: - | L64: -
H65: - | I65: - | J65: - | K65: - | L65: -
H66: - | I66: - | J66: - | K66: - | L66: -
H67: - | I67: - | J67: - | K67: - | L67: -
H68: - | I68: - | J68: - | K68: - | L68: -
H69: - | I69: - | J69: - | K69: - | L69: -
H70: - | I70: - | J70: - | K70: - | L70: -
H71: - | I71: - | J71: - | K71: - | L71: -
A72: PB-5 | B72: PS-5 | C72: 29 | D72: 2 | E72: =VLOOKUP(D72,$R$6:$T$16,2,FALSE) -> 2.067 | F72: =VLOOKUP(D72,$R$6:$T$16,3,FALSE) -> 3.36 | G72: =VLOOKUP(D72,$R$6:$U$16,4,FALSE) -> 0.84 | H72: SIGNALS | I72: IMSA 19-1 OR 20-1 | J72: 5/C # 14 | K72: 1 | L72: 0.19 | M72: =IF(L72="-","-",SUMIF(L72:L86,">0")) -> 0.29 | N72: =IF(M72="-","-",IF(M72<=G72, "YES", "NO")) -> YES | O72: =IF(N72="-","-",IF(N72="YES",D72,INDEX($R$19:$R$28,MATCH(M72,$S$19:$S$28,-1)))) -> 2
H73: SIGNALS | I73: IMSA 19-1 OR 20-1 | J73: 2/C # 14 | K73: 1 | L73: 0.1
H74: - | I74: - | J74: - | K74: - | L74: -
H75: - | I75: - | J75: - | K75: - | L75: -
H76: - | I76: - | J76: - | K76: - | L76: -
H77: - | I77: - | J77: - | K77: - | L77: -
H78: - | I78: - | J78: - | K78: - | L78: -
H79: - | I79: - | J79: - | K79: - | L79: -
H80: - | I80: - | J80: - | K80: - | L80: -
H81: - | I81: - | J81: - | K81: - | L81: -
H82: - | I82: - | J82: - | K82: - | L82: -
H83: - | I83: - | J83: - | K83: - | L83: -
H84: - | I84: - | J84: - | K84: - | L84: -
H85: - | I85: - | J85: - | K85: - | L85: -
H86: - | I86: - | J86: - | K86: - | L86: -
A87: - | B87: - | C87: - | D87: - | E87: =VLOOKUP(D87,$R$6:$T$16,2,FALSE) -> - | F87: =VLOOKUP(D87,$R$6:$T$16,3,FALSE) -> - | G87: =VLOOKUP(D87,$R$6:$U$16,4,FALSE) -> - | H87: - | I87: - | J87: - | K87: - | L87: - | M87: =IF(L87="-","-",SUMIF(L87:L101,">0")) -> - | N87: =IF(M87="-","-",IF(M87<=G87, "YES", "NO")) -> - | O87: =IF(N87="-","-",IF(N87="YES",D87,INDEX($R$19:$R$28,MATCH(M87,$S$19:$S$28,-1)))) -> -
H88: - | I88: - | J88: - | K88: - | L88: -
H89: - | I89: - | J89: - | K89: - | L89: -
H90: - | I90: - | J90: - | K90: - | L90: -
H91: - | I91: - | J91: - | K91: - | L91: -
H92: - | I92: - | J92: - | K92: - | L92: -
H93: - | I93: - | J93: - | K93: - | L93: -
H94: - | I94: - | J94: - | K94: - | L94: -
H95: - | I95: - | J95: - | K95: - | L95: -
H96: - | I96: - | J96: - | K96: - | L96: -
H97: - | I97: - | J97: - | K97: - | L97: -
H98: - | I98: - | J98: - | K98: - | L98: -
H99: - | I99: - | J99: - | K99: - | L99: -
H100: - | I100: - | J100: - | K100: - | L100: -
H101: - | I101: - | J101: - | K101: - | L101: -
A103: * NOTE: INCLUDE GROUNDING CONDUCTOR IN WIRE COUNT FOR LIGHTING CIRCUITS OF NOTATION "WITH GROUND."
A105: CONDUIT | H105: CABLE AND WIRE | N105: IS [A] LESS THAN 0.25C? | O105: FINAL CONDUIT NOMINAL DIAMETER
A106: FROM | B106: TO | C106: RUN LENGTH | D106: SIZE/NOMINAL DIAMETER | E106: INSIDE DIAMETER | F106: C | G106: 0.25C | H106: CABLE USE | I106: SPECIFICATION OR MATERIAL | J106: NO. OF CONDUCTORS AWG | K106: NO. CABLES OR WIRES* | L106: a | M106: [A]
F107: INSIDE AREA | G107: 25% INSIDE AREA | L107: CROSS SECTION AREA | M107: COMBINED CROSS SECTION AREA
C108: FT. | D108: IN. | E108: IN. | F108: SQ. IN. | G108: SQ. IN. | L108: SQ. IN. | M108: SQ. IN. | O108: IN.
A109: - | B109: - | C109: - | D109: - | E109: =VLOOKUP(D109,$R$6:$T$16,2,FALSE) -> - | F109: =VLOOKUP(D109,$R$6:$T$16,3,FALSE) -> - | G109: =VLOOKUP(D109,$R$6:$U$16,4,FALSE) -> - | H109: - | I109: - | J109: - | K109: - | L109: =IF(K109="-","-",(K109*INDEX($Y$6:$Y$40,MATCH(1,INDEX((I109=$W$6:$W$40)*(J109=$X$6:$X$40),0),0)))) -> - | M109: =IF(L109="-","-",SUMIF(L109:L123,">0")) -> - | N109: =IF(M109="-","-",IF(M109<=G109, "YES", "NO")) -> - | O109: =IF(N109="-","-",IF(N109="YES",D109,INDEX($R$19:$R$28,MATCH(M109,$S$19:$S$28,-1)))) -> -
H110: - | I110: - | J110: - | K110: - | L110: =IF(K110="-","-",(K110*INDEX($Y$6:$Y$40,MATCH(1,INDEX((I110=$W$6:$W$40)*(J110=$X$6:$X$40),0),0)))) -> -
H111: - | I111: - | J111: - | K111: - | L111: -
H112: - | I112: - | J112: - | K112: - | L112: -
H113: - | I113: - | J113: - | K113: - | L113: -
H114: - | I114: - | J114: - | K114: - | L114: -
H115: - | I115: - | J115: - | K115: - | L115: -
H116: - | I116: - | J116: - | K116: - | L116: -
H117: - | I117: - | J117: - | K117: - | L117: -
H118: - | I118: - | J118: - | K118: - | L118: -
H119: - | I119: - | J119: - | K119: - | L119: -
H120: - | I120: - | J120: - | K120: - | L120: -
H121: - | I121: - | J121: - | K121: - | L121: -
H122: - | I122: - | J122: - | K122: - | L122: -
H123: - | I123: - | J123: - | K123: - | L123: -
A124: - | B124: - | C124: - | D124: - | E124: =VLOOKUP(D124,$R$6:$T$16,2,FALSE) -> - | F124: =VLOOKUP(D124,$R$6:$T$16,3,FALSE) -> - | G124: =VLOOKUP(D124,$R$6:$U$16,4,FALSE) -> - | H124: - | I124: - | J124: - | K124: - | L124: - | M124: =IF(L124="-","-",SUMIF(L124:L138,">0")) -> - | N124: =IF(M124="-","-",IF(M124<=G124, "YES", "NO")) -> - | O124: =IF(N124="-","-",IF(N124="YES",D124,INDEX($R$19:$R$28,MATCH(M124,$S$19:$S$28,-1)))) -> -
H125: - | I125: - | J125: - | K125: - | L125: -
H126: - | I126: - | J126: - | K126: - | L126: -
H127: - | I127: - | J127: - | K127: - | L127: -
H128: - | I128: - | J128: - | K128: - | L128: -
H129: - | I129: - | J129: - | K129: - | L129: -
H130: - | I130: - | J130: - | K130: - | L130: -
H131: - | I131: - | J131: - | K131: - | L131: -
H132: - | I132: - | J132: - | K132: - | L132: -
H133: - | I133: - | J133: - | K133: - | L133: -
H134: - | I134: - | J134: - | K134: - | L134: -
H135: - | I135: - | J135: - | K135: - | L135: -
H136: - | I136: - | J136: - | K136: - | L136: -
H137: - | I137: - | J137: - | K137: - | L137: -
H138: - | I138: - | J138: - | K138: - | L138: -
A139: - | B139: - | C139: - | D139: - | E139: =VLOOKUP(D139,$R$6:$T$16,2,FALSE) -> - | F139: =VLOOKUP(D139,$R$6:$T$16,3,FALSE) -> - | G139: =VLOOKUP(D139,$R$6:$U$16,4,FALSE) -> - | H139: - | I139: - | J139: - | K139: - | L139: - | M139: =IF(L139="-","-",SUMIF(L139:L153,">0")) -> - | N139: =IF(M139="-","-",IF(M139<=G139, "YES", "NO")) -> - | O139: =IF(N139="-","-",IF(N139="YES",D139,INDEX($R$19:$R$28,MATCH(M139,$S$19:$S$28,-1)))) -> -
H140: - | I140: - | J140: - | K140: - | L140: -
H141: - | I141: - | J141: - | K141: - | L141: -
H142: - | I142: - | J142: - | K142: - | L142: -
H143: - | I143: - | J143: - | K143: - | L143: -
H144: - | I144: - | J144: - | K144: - | L144: -
H145: - | I145: - | J145: - | K145: - | L145: -
H146: - | I146: - | J146: - | K146: - | L146: -
H147: - | I147: - | J147: - | K147: - | L147: -
H148: - | I148: - | J148: - | K148: - | L148: -
H149: - | I149: - | J149: - | K149: - | L149: -
H150: - | I150: - | J150: - | K150: - | L150: -
H151: - | I151: - | J151: - | K151: - | L151: -
H152: - | I152: - | J152: - | K152: - | L152: -
H153: - | I153: - | J153: - | K153: - | L153: -
A155: * NOTE: INCLUDE GROUNDING CONDUCTOR IN WIRE COUNT FOR LIGHTING CIRCUITS OF NOTATION "WITH GROUND."
A157: CONDUIT | H157: CABLE AND WIRE | N157: IS [A] LESS THAN 0.25C? | O157: FINAL CONDUIT NOMINAL DIAMETER
A158: FROM | B158: TO | C158: RUN LENGTH | D158: SIZE/NOMINAL DIAMETER | E158: INSIDE DIAMETER | F158: C | G158: 0.25C | H158: CABLE USE | I158: SPECIFICATION OR MATERIAL | J158: NO. OF CONDUCTORS AWG | K158: NO. CABLES OR WIRES* | L158: a | M158: [A]
F159: INSIDE AREA | G159: 25% INSIDE AREA | L159: CROSS SECTION AREA | M159: COMBINED CROSS SECTION AREA
C160: FT. | D160: IN. | E160: IN. | F160: SQ. IN. | G160: SQ. IN. | L160: SQ. IN. | M160: SQ. IN. | O160: IN.
A161: - | B161: - | C161: - | D161: - | E161: =VLOOKUP(D161,$R$6:$T$16,2,FALSE) -> - | F161: =VLOOKUP(D161,$R$6:$T$16,3,FALSE) -> - | G161: =VLOOKUP(D161,$R$6:$U$16,4,FALSE) -> - | H161: - | I161: - | J161: - | K161: - | L161: =IF(K161="-","-",(K161*INDEX($Y$6:$Y$40,MATCH(1,INDEX((I161=$W$6:$W$40)*(J161=$X$6:$X$40),0),0)))) -> - | M161: =IF(L161="-","-",SUMIF(L161:L175,">0")) -> - | N161: =IF(M161="-","-",IF(M161<=G161, "YES", "NO")) -> - | O161: =IF(N161="-","-",IF(N161="YES",D161,INDEX($R$19:$R$28,MATCH(M161,$S$19:$S$28,-1)))) -> -
H162: - | I162: - | J162: - | K162: - | L162: =IF(K162="-","-",(K162*INDEX($Y$6:$Y$40,MATCH(1,INDEX((I162=$W$6:$W$40)*(J162=$X$6:$X$40),0),0)))) -> -
H163: - | I163: - | J163: - | K163: - | L163: -
H164: - | I164: - | J164: - | K164: - | L164: -
H165: - | I165: - | J165: - | K165: - | L165: -
H166: - | I166: - | J166: - | K166: - | L166: -
H167: - | I167: - | J167: - | K167: - | L167: -
H168: - | I168: - | J168: - | K168: - | L168: -
H169: - | I169: - | J169: - | K169: - | L169: -
H170: - | I170: - | J170: - | K170: - | L170: -
H171: - | I171: - | J171: - | K171: - | L171: -
H172: - | I172: - | J172: - | K172: - | L172: -
H173: - | I173: - | J173: - | K173: - | L173: -
H174: - | I174: - | J174: - | K174: - | L174: -
H175: - | I175: - | J175: - | K175: - | L175: -
A176: - | B176: - | C176: - | D176: - | E176: =VLOOKUP(D176,$R$6:$T$16,2,FALSE) -> - | F176: =VLOOKUP(D176,$R$6:$T$16,3,FALSE) -> - | G176: =VLOOKUP(D176,$R$6:$U$16,4,FALSE) -> - | H176: - | I176: - | J176: - | K176: - | L176: - | M176: =IF(L176="-","-",SUMIF(L176:L190,">0")) -> - | N176: =IF(M176="-","-",IF(M176<=G176, "YES", "NO")) -> - | O176: =IF(N176="-","-",IF(N176="YES",D176,INDEX($R$19:$R$28,MATCH(M176,$S$19:$S$28,-1)))) -> -
H177: - | I177: - | J177: - | K177: - | L177: -
H178: - | I178: - | J178: - | K178: - | L178: -
H179: - | I179: - | J179: - | K179: - | L179: -
H180: - | I180: - | J180: - | K180: - | L180: -
H181: - | I181: - | J181: - | K181: - | L181: -
H182: - | I182: - | J182: - | K182: - | L182: -
H183: - | I183: - | J183: - | K183: - | L183: -
H184: - | I184: - | J184: - | K184: - | L184: -
H185: - | I185: - | J185: - | K185: - | L185: -
H186: - | I186: - | J186: - | K186: - | L186: -
H187: - | I187: - | J187: - | K187: - | L187: -
H188: - | I188: - | J188: - | K188: - | L188: -
H189: - | I189: - | J189: - | K189: - | L189: -
H190: - | I190: - | J190: - | K190: - | L190: -
A191: - | B191: - | C191: - | D191: - | E191: =VLOOKUP(D191,$R$6:$T$16,2,FALSE) -> - | F191: =VLOOKUP(D191,$R$6:$T$16,3,FALSE) -> - | G191: =VLOOKUP(D191,$R$6:$U$16,4,FALSE) -> - | H191: - | I191: - | J191: - | K191: - | L191: - | M191: =IF(L191="-","-",SUMIF(L191:L205,">0")) -> - | N191: =IF(M191="-","-",IF(M191<=G191, "YES", "NO")) -> - | O191: =IF(N191="-","-",IF(N191="YES",D191,INDEX($R$19:$R$28,MATCH(M191,$S$19:$S$28,-1)))) -> -
H192: - | I192: - | J192: - | K192: - | L192: -
H193: - | I193: - | J193: - | K193: - | L193: -
H194: - | I194: - | J194: - | K194: - | L194: -
H195: - | I195: - | J195: - | K195: - | L195: -
H196: - | I196: - | J196: - | K196: - | L196: -
H197: - | I197: - | J197: - | K197: - | L197: -
H198: - | I198: - | J198: - | K198: - | L198: -
H199: - | I199: - | J199: - | K199: - | L199: -
H200: - | I200: - | J200: - | K200: - | L200: -
H201: - | I201: - | J201: - | K201: - | L201: -
H202: - | I202: - | J202: - | K202: - | L202: -
H203: - | I203: - | J203: - | K203: - | L203: -
H204: - | I204: - | J204: - | K204: - | L204: -
H205: - | I205: - | J205: - | K205: - | L205: -
A207: * NOTE: INCLUDE GROUNDING CONDUCTOR IN WIRE COUNT FOR LIGHTING CIRCUITS OF NOTATION "WITH GROUND."
... 50 more rows
